Cogmind - Beta 12 @@@ ROGUE MODE // 2023.12.21 @ 23:09:29 Player: Ischenous Result: Destroyed by X-67 Chaingunner with Minigun Performance ------------- Evolutions (3) 1500 Regions Visited (9) 1800 Robots Destroyed (29) 145 Value Destroyed (1094) 1094 Prototype IDs (6) 120 Alien Tech Used (0) 0 Bonus (946) 946 TOTAL SCORE: 5605 Bonus ------- Follower Combat Kills 146 Entered DSFs 500 Aligned with FarCom 300 Cogmind --------- Core Integrity 0/700 Matter 300/300 Energy 100/100 System Corruption 0% Temperature Cool (0) Movement Treading (160) Location -7/DSF Parts ------- > --- POWER (2) -------- (None) > --- PROPULSION (3) --- Improved Medium Treads > --- UTILITY (6) ------ (None) > --- WEAPON (2) ------- (None) > --- INVENTORY (5) ---- Light Deuterium Engine Improved Medium Laser Peak State ------------ > --- POWER ------------ Improved Ion Engine Heavy Ion Engine > --- PROPULSION ------- Aluminum Leg Carbon-fiber Leg Carbon-fiber Leg > --- UTILITY ---------- Heat Sink Heat Sink Small Storage Unit Improved Sensor Array Improved Light Armor Plating > --- WEAPON ----------- EM Pulse Cannon Ion Cannon > --- INVENTORY -------- Heavy Ion Engine Light Deuterium Engine Improved Sensor Array Improved Medium Laser Pulse Rifle Heavy Particle Gun Heavy Particle Cannon [Rating: 29] Favorites ----------- Power Ion Engine Engine Ion Engine Propulsion Aluminum Leg Treads Improved Medium Treads Leg Aluminum Leg Utility Heat Sink Device Heat Sink Storage Small Storage Unit Processor Improved Targeting Computer Protection Improved Light Armor Plating Weapon Small Laser Energy Gun Small Laser Energy Cannon Ion Cannon Ballistic Gun Light Assault Rifle Special Weapon Mining Laser Build | -11 -10 -9 -9 -9 -8 -8 -8 -7 -7 ------- Run | Jun Mat Mat Min Exi Min Mat Sto Fac DSF Slots Evolved 6 | . . 2 . . . 2 . 2 . Power 1 | . . . . . . 1 . . . Propulsion 1 | . . . . . . . . 1 . Utility 4 | . . 2 . . . 1 . 1 . Weapon . | . . . . . . . . . . Parts Attached 55 | 7 . 11 4 1 1 5 20 . 6 Power 7 | 1 . 1 2 . . 1 2 . . Engine 7 | 1 . 1 2 . . 1 2 . . Core . | . . . . . . . . . . Reactor . | . . . . . . . . . . Propulsion 11 | 2 . 2 . . . 1 3 . 3 Treads 2 | . . . . . . . . . 2 Leg 9 | 2 . 2 . . . 1 3 . 1 Wheel . | . . . . . . . . . . Hover . | . . . . . . . . . . Flight . | . . . . . . . . . . Utility 15 | 2 . 3 2 1 . 2 4 . 1 Device 11 | 1 . 1 2 1 . 1 4 . 1 Storage 1 | 1 . . . . . . . . . Processor 1 | . . 1 . . . . . . . Hackware . | . . . . . . . . . . Protection 2 | . . 1 . . . 1 . . . Artifact . | . . . . . . . . . . Weapon 22 | 2 . 5 . . 1 1 11 . 2 Energy Gun 15 | 1 . 3 . . 1 1 8 . 1 Energy Cannon 4 | . . . . . . . 3 . 1 Ballistic Gun 2 | 1 . 1 . . . . . . . Ballistic Cannon . | . . . . . . . . . . Launcher . | . . . . . . . . . . Special Weapon 1 | . . 1 . . . . . . . Impact Weapon . | . . . . . . . . . . Slashing Weapon . | . . . . . . . . . . Piercing Weapon . | . . . . . . . . . . Special Melee Weapon . | . . . . . . . . . . Unidentified Prototypes 6 | . . . . 2 . . 4 . . Parts Lost 29 | . . 10 . . . 1 2 . 16 Power 5 | . . 2 . . . . 1 . 2 Propulsion 5 | . . 1 . . . . . . 4 Utility 10 | . . 2 . . . 1 1 . 6 Weapon 9 | . . 5 . . . . . . 4 Highest Loss Streak 16 | . . 6 . . . 1 1 . 16 To Critical Strikes . | . . . . . . . . . . Average Slot Usage (%) 94 | . 100 78 94 99 100 95 98 84 73 Engine 13 | . 14 10 11 11 11 17 17 15 13 Leg 19 | . 28 17 22 22 22 18 18 15 15 Device 21 | . 14 12 16 21 22 22 25 23 20 Storage 9 | . 14 11 11 11 11 9 9 7 5 Processor 4 | . . 1 11 11 11 2 . . . Protection 4 | . . 4 . . . 8 9 7 4 Energy Gun 14 | . 14 12 22 22 22 18 10 . . Energy Cannon 3 | . . . . . . . 7 15 11 Ballistic Gun 1 | . 14 8 . . . . . . . Naked Turns 3 | . . . . . . . . . 3 Heaviest Build 38 | 11 11 15 14 14 16 27 38 38 38 Greatest Support 40 | 20 20 20 20 20 20 25 30 30 40 Greatest Overweight (x) 3 | . . 3 . . . 1 1 1 1 Average Overweight (x) . | . . . . . . . . 1 . Largest Inventory Capacity 8 | 8 8 8 8 8 8 8 8 8 8 Average Capacity 7 | 7 8 8 8 8 8 8 8 8 7 Most Carried 8 | 5 4 6 8 8 8 8 8 8 8 Average Carried 6 | 1 3 3 7 7 7 7 7 8 6 Final Capacity 8 | 8 8 8 8 8 8 8 8 8 5 Final Carried 8 | 2 4 6 8 7 8 8 8 8 2 Class Distribution -------------------- 45% | Scavenger-Mutant 35% | Scavenger-Skirmisher 13% | Mutant 4% | Commander-Skirmisher Dominant Class ---------------- Mutant | -10/Materials Mutant | -9/Materials Scavenger-Mutant | -9/Mines Scavenger-Mutant | -9/Exiles Scavenger-Skirmisher | -8/Mines Scavenger-Skirmisher | -8/Materials Scavenger-Skirmisher | -8/Storage Scavenger-Skirmisher | -7/Factory Scavenger-Skirmisher | -7/DSF Resources | -11 -10 -9 -9 -9 -8 -8 -8 -7 -7 ----------- Run | Jun Mat Mat Min Exi Min Mat Sto Fac DSF Matter Collected 755 | 235 . 178 34 . . 81 190 . 37 Remotely . | . . . . . . . . . . Salvage Created 1058 | 97 . 393 . . . 211 205 . 152 Parts 52 | 6 . 25 . . . 6 7 . 8 Haulers Intercepted . | . . . . . . . . . . Recyclers Shooed . | . . . . . . . . . . Parts Field Recycled . | . . . . . . . . . . Retrieved Matter . | . . . . . . . . . . Parts Self-Destructed . | . . . . . . . . . . Prevented . | . . . . . . . . . . Kills | -11 -10 -9 -9 -9 -8 -8 -8 -7 -7 ------- Run | Jun Mat Mat Min Exi Min Mat Sto Fac DSF Combat Hostiles Destroyed 25 | . . 10 . . . 4 8 . 3 Melee 1 | . . . . . . . . . 1 Guns 16 | . . 8 . . . 4 4 . . Cannons 8 | . . 2 . . . . 4 . 2 Classes Destroyed 9 | 2 . 4 . . . 1 1 . 1 Tunneler 1 | 1 . . . . . . . . . Recycler 1 | 1 . . . . . . . . . Watcher 2 | . . 1 . . . 1 . . . Swarmer 3 | . . . . . . . 3 . . Grunt 15 | . . 6 . . . 3 4 . 2 Duelist 1 | . . 1 . . . . . . . Sentry 4 | . . 3 . . . . 1 . . Hunter 1 | . . . . . . 1 . . . Heavy 1 | . . . . . . . . . 1 Best Kill Streak 5 | 1 . 5 . . . 3 4 . 1 Combat Bots Only 5 | . . 5 . . . 3 4 . 1 Max Kills in Single Turn 2 | 1 . 2 . . . 1 1 . 1 Gunslinging . | . . . . . . . . . . Exploded . | . . . . . . . . . . Melee 1 | . . . . . . . . . 1 Uniques/NPCs Destroyed . | . . . . . . . . . . Combat | -11 -10 -9 -9 -9 -8 -8 -8 -7 -7 -------- Run | Jun Mat Mat Min Exi Min Mat Sto Fac DSF Damage Taken 3842 | . . 1143 . . . 258 344 . 2097 Core 992 | . . 235 . . . 43 8 . 706 Absorbed by Shields . | . . . . . . . . . . Core Remaining (%) 82 | 100 100 . . . 41 . 90 . . Volleys Fired 102 | 6 . 44 . . . 15 21 . 16 Largest 2 | 2 . 2 . . . 2 2 . 2 Hottest 138 | 60 . 120 . . . 119 123 . 138 Shots Fired 184 | 12 . 73 . . . 30 41 . 28 Gun 131 | 12 . 67 . . . 30 20 . 2 Cannon 47 | . . . . . . . 21 . 26 Launcher . | . . . . . . . . . . Special 6 | . . 6 . . . . . . . Kinetic 44 | 6 . 38 . . . . . . . Thermal 130 | 6 . 35 . . . 30 40 . 19 Explosive . | . . . . . . . . . . Electromagnetic 10 | . . . . . . . 1 . 9 Robot Hit Streak 13 | 9 . 13 . . . 10 8 . 5 Robot Miss Streak 2 | 2 . 2 . . . 2 2 . 2 Penetration Max . | . . . . . . . . . . Secondary Targets 4 | . . 3 . . . 1 . . . Max Gunslinging Chain 1 | . . 1 . . . 1 . . . Shots Hit Robots 126 | 9 . 57 . . . 23 19 . 18 Core Hits 52 | 4 . 23 . . . 10 11 . 4 Critical Kills . | . . . . . . . . . . Critical Parts Destroyed . | . . . . . . . . . . Critical Strikes 4 | . . 1 . . . 3 . . . Burn 4 | . . 1 . . . 3 . . . Melee Attacks . | . . . . . . . . . . Impact . | . . . . . . . . . . Slashing . | . . . . . . . . . . Piercing . | . . . . . . . . . . Sneak Attacks . | . . . . . . . . . . Combat Hostiles . | . . . . . . . . . . Follow-up Attacks . | . . . . . . . . . . Damage Inflicted 2005 | 82 . 693 . . . 356 437 . 437 Guns 1278 | 82 . 597 . . . 356 209 . 34 Cannons 621 | . . . . . . . 228 . 393 Explosions . | . . . . . . . . . . Melee . | . . . . . . . . . . Ramming 10 | . . . . . . . . . 10 Kinetic 337 | 29 . 308 . . . . . . . Thermal 1455 | 53 . 385 . . . 356 412 . 249 Explosive . | . . . . . . . . . . Electromagnetic 203 | . . . . . . . 25 . 178 Impact . | . . . . . . . . . . Slashing . | . . . . . . . . . . Piercing . | . . . . . . . . . . Highest Corruption 2 | . . . . . . . 2 . . Average Corruption 1 | . . . . . . . 1 . . Corruption Purged . | . . . . . . . . . . Corruption Blocked . | . . . . . . . . . . Effects 20 | . . . . . . . 20 . . Message Errors 4 | . . . . . . . 4 . . Matter Fused 3 | . . . . . . . 3 . . Heat Flow Errors 3 | . . . . . . . 3 . . Energy Discharges 5 | . . . . . . . 5 . . Data Loss (minor) 2 | . . . . . . . 2 . . Misfires 2 | . . . . . . . 2 . . Alerts 1 | . . . . . . . 1 . . Overload Shots . | . . . . . . . . . . Overflow Damage 19 | . . . . . . . 19 . . Projectiles 19 | . . . . . . . 19 . . Explosions . | . . . . . . . . . . Melee . | . . . . . . . . . . Knockbacks . | . . . . . . . . . . Impact . | . . . . . . . . . . Kinetic . | . . . . . . . . . . Secondary . | . . . . . . . . . . Self-Inflicted Damage 4 | . . . . . . . . . 4 Shots . | . . . . . . . . . . Rammed 5 | . . . . . . . . . 5 Targets Rammed 6 | . . . . . . . . . 6 Kicked . | . . . . . . . . . . Crushed 1 | . . . . . . . . . 1 Highest Temperature 365 | 40 . 87 . . . 365 149 . 69 Average Temperature 67 | 17 . 45 . . . 147 35 . 29 Received Heat Transfer 1341 | . . 360 . . . 162 99 . 720 Siege Activations . | . . . . . . . . . . Robots Corrupted . | . . . . . . . . . . Combat Hostiles . | . . . . . . . . . . Parts Fried 1 | . . . . . . . . . 1 Impact Corruptions . | . . . . . . . . . . Robots Melted . | . . . . . . . . . . Combat Hostiles . | . . . . . . . . . . Parts Melted 8 | . . 1 . . . 6 1 . . Heat Transferred 3328 | 125 . 958 . . . 1061 777 . 407 Parts Sabotaged . | . . . . . . . . . . Parts Stolen . | . . . . . . . . . . Parts Stripped . | . . . . . . . . . . Power Chain Reactions . | . . . . . . . . . . Missiles Intercepted . | . . . . . . . . . . Alert | -11 -10 -9 -9 -9 -8 -8 -8 -7 -7 ------- Run | Jun Mat Mat Min Exi Min Mat Sto Fac DSF Peak Influence 195 | 10 8 195 12 . . 90 192 21 30 Initial 16 | . 6 3 12 . . . 15 16 14 Average 35 | 5 6 44 12 . . 48 53 16 14 Maximum Alert Level . | . . . . . . . . . . Low Security (%) 100 | 100 100 100 100 . 100 100 100 100 100 Level 1 . | . . . . . . . . . . Level 2 . | . . . . . . . . . . Level 3 . | . . . . . . . . . . Level 4 . | . . . . . . . . . . Level 5 . | . . . . . . . . . . High Security . | . . . . . . . . . . Max Security . | . . . . . . . . . . Squads Dispatched 7 | . . 1 . . . 1 3 . 2 Investigation 1 | . . 1 . . . . . . . Extermination . | . . . . . . . . . . Reinforcement 4 | . . . . . . 1 1 . 2 Assault 2 | . . . . . . . 2 . . Garrison . | . . . . . . . . . . Intercept . | . . . . . . . . . . Searches Triggered . | . . . . . . . . . . Construction Impeded . | . . . . . . . . . . Haulers Reinforced . | . . . . . . . . . . Active Scanning Responses . | . . . . . . . . . . Cargo Convoy Interrupts . | . . . . . . . . . . Stealth | -11 -10 -9 -9 -9 -8 -8 -8 -7 -7 --------- Run | Jun Mat Mat Min Exi Min Mat Sto Fac DSF Distress Signals 3 | . . 1 . . . 1 1 . . Communications Jammed . | . . . . . . . . . . Distress Signals . | . . . . . . . . . . Times Spotted 48 | . . 17 . . . 7 15 . 9 Peak Tracking Total 7 | . . 7 . . . 7 7 . 7 Tactical Retreats 2 | . . 1 . . . . 1 . . Traps | -11 -10 -9 -9 -9 -8 -8 -8 -7 -7 ------- Run | Jun Mat Mat Min Exi Min Mat Sto Fac DSF Traps Triggered 5 | . . 1 . . . . 3 . 1 Indirectly . | . . . . . . . . . . Trap Hack Attempts . | . . . . . . . . . . Triggered . | . . . . . . . . . . Disarmed . | . . . . . . . . . . Reprogrammed . | . . . . . . . . . . Reused . | . . . . . . . . . . Traps Extracted . | . . . . . . . . . . Installed . | . . . . . . . . . . Triggered . | . . . . . . . . . . Most Traps Carried 3 | . . . 3 3 2 2 2 . . Machines | -11 -10 -9 -9 -9 -8 -8 -8 -7 -7 ---------- Run | Jun Mat Mat Min Exi Min Mat Sto Fac DSF Machines Disabled 4 | . . . . . . . 4 . . Max in Single Turn 1 | . . . . . . . 1 . . Machines Repaired . | . . . . . . . . . . Machines Sabotaged . | . . . . . . . . . . Overloaded Fab Kills . | . . . . . . . . . . Hacking | -11 -10 -9 -9 -9 -8 -8 -8 -7 -7 --------- Run | Jun Mat Mat Min Exi Min Mat Sto Fac DSF Machines Accessed 9 | . 2 . . . . . 5 2 . Terminals 8 | . 2 . . . . . 4 2 . Fabricators . | . . . . . . . . . . Repair Stations . | . . . . . . . . . . Recycling Units 1 | . . . . . . . 1 . . Scanalyzers . | . . . . . . . . . . Garrison Access . | . . . . . . . . . . Total Hacks 16 | . 6 . . . . . 7 3 . Successful 9 | . 3 . . . . . 5 1 . Failed 7 | . 3 . . . . . 2 2 . Catastrophic 3 | . . . . . . . 2 1 . Database Lockouts . | . . . . . . . . . . Manual 1 | . . . . 1 . . . . . Terminals 15 | . 6 . . . . . 6 3 . Fabricators . | . . . . . . . . . . Repair Stations . | . . . . . . . . . . Recycling Units 1 | . . . . . . . 1 . . Scanalyzers . | . . . . . . . . . . Garrison Access . | . . . . . . . . . . Terminal Hacks 8 | . 3 . . . . . 4 1 . Record 3 | . 2 . . . . . 1 . . Open Door 2 | . . . . . . . 2 . . Open DSF 1 | . . . . . . . . 1 . Zone Layout 2 | . 1 . . . . . 1 . . Fabricator Hacks . | . . . . . . . . . . Repair Station Hacks . | . . . . . . . . . . Recycling Unit Hacks 1 | . . . . . . . 1 . . Report Inventory 1 | . . . . . . . 1 . . Scanalyzer . | . . . . . . . . . . Garrison Access Hacks . | . . . . . . . . . . Unauthorized Hacks . | . . . . . . . . . . Terminals . | . . . . . . . . . . Fabricators . | . . . . . . . . . . Repair Stations . | . . . . . . . . . . Recycling Units . | . . . . . . . . . . Scanalyzers . | . . . . . . . . . . Garrison Access . | . . . . . . . . . . Data Cores Recovered . | . . . . . . . . . . Used . | . . . . . . . . . . Hacking Detections 6 | . 2 . . . . . 3 1 . Full Trace Events 1 | . 1 . . . . . . . . Feedback Events . | . . . . . . . . . . Feedback Blocked . | . . . . . . . . . . Robot Schematics Acquired . | . . . . . . . . . . Robots Built . | . . . . . . . . . . Authchips . | . . . . . . . . . . Time . | . . . . . . . . . . Total Robot Build Rating . | . . . . . . . . . . Part Schematics Acquired . | . . . . . . . . . . Parts Built . | . . . . . . . . . . Authchips . | . . . . . . . . . . Time . | . . . . . . . . . . Total Part Build Rating . | . . . . . . . . . . Parts Repaired . | . . . . . . . . . . Time . | . . . . . . . . . . Parts Recycled . | . . . . . . . . . . Recycled Matter . | . . . . . . . . . . Retrieved Matter . | . . . . . . . . . . Retrieved Components . | . . . . . . . . . . Parts Scanalyzed . | . . . . . . . . . . Part Schematics Acquired . | . . . . . . . . . . Parts Damaged . | . . . . . . . . . . Bothacking | -11 -10 -9 -9 -9 -8 -8 -8 -7 -7 ------------ Run | Jun Mat Mat Min Exi Min Mat Sto Fac DSF Used RIF Installer . | . . . . . . . . . . Robots Hacked . | . . . . . . . . . . Non-combat . | . . . . . . . . . . Combat . | . . . . . . . . . . Robot Hacks Applied . | . . . . . . . . . . Relay Couplers Released . | . . . . . . . . . . Fabnet Peak Effective % . | . . . . . . . . . . Robots Rewired . | . . . . . . . . . . Allies Hacked . | . . . . . . . . . . Hacks Repelled . | . . . . . . . . . . Allies | -11 -10 -9 -9 -9 -8 -8 -8 -7 -7 -------- Run | Jun Mat Mat Min Exi Min Mat Sto Fac DSF Total Allies 12 | . . . . . . . 12 . . Largest Group 12 | . . . . . . . 12 1 1 Highest-Rated Group 235 | . . . . . . . 235 31 31 Highest-Rated Ally 31 | . . . . . . . 31 31 31 Total Orders . | . . . . . . . . . . Ally Attacks 45 | . . . . . . . 39 . 6 Total Damage 592 | . . . . . . . 528 . 64 Kills 4 | . . . . . . . 4 . . Allies Corrupted 1 | . . . . . . . 1 . . Allies Melted . | . . . . . . . . . . Intel | -11 -10 -9 -9 -9 -8 -8 -8 -7 -7 ------- Run | Jun Mat Mat Min Exi Min Mat Sto Fac DSF Robot Analysis Total . | . . . . . . . . . . Derelict Logs Recovered 1 | . . . 1 . . . . . . Drone Launches . | . . . . . . . . . . Drone Recoveries . | . . . . . . . . . . Exploration | -11 -10 -9 -9 -9 -8 -8 -8 -7 -7 ------------- Run | Jun Mat Mat Min Exi Min Mat Sto Fac DSF Turns Passed 4849 | 125 178 554 390 1353 114 480 1174 337 144 Spaces Moved 2926 | 93 147 312 316 1125 88 233 376 178 58 Core 30 | 26 . 4 . . . . . . . Treads 2 | . . . . . . . . . 2 Legs 2894 | 67 147 308 316 1125 88 233 376 178 56 Wheels . | . . . . . . . . . . Hover . | . . . . . . . . . . Flight . | . . . . . . . . . . Fastest Speed 50 | 50 120 120 120 120 120 120 120 190 120 Average Speed 138 | 100 120 129 120 120 120 179 188 190 145 Slowest Speed 240 | 120 120 200 120 120 120 190 190 190 240 Overloaded Moves . | . . . . . . . . . . Propulsion Burnouts . | . . . . . . . . . . Robots Hopped . | . . . . . . . . . . Cave-ins Triggered . | . . . . . . . . . . Time Travels 1 | . . . . 1 . . . . . Exploration Rate (%) 32 | 4 20 19 52 94 16 14 51 5 52 Regions Visited 9 Branch Regions 4 Pre-discovered Areas . | . . . . . . . . . . Known Exits Taken 1 | . . . . . . . . 1 . Unknown Exits Taken 8 | 1 1 1 1 1 1 1 1 . . Scrap Searched 1 | . . . 1 . . . . . . Spaces Dug . | . . . . . . . . . . Terrain Destroyed 4 | . . 2 . . . . 2 . . Melee . | . . . . . . . . . . Projectile 4 | . . 2 . . . . 2 . . AOE . | . . . . . . . . . . Terrain Rammed . | . . . . . . . . . . Walls Destroyed . | . . . . . . . . . . Machines Disabled . | . . . . . . . . . . Actions | -11 -10 -9 -9 -9 -8 -8 -8 -7 -7 --------- Run | Jun Mat Mat Min Exi Min Mat Sto Fac DSF Total 3529 | 114 148 382 327 1128 96 266 803 177 88 Wait 369 | . . 3 . . 7 5 354 . . Move 2917 | 92 146 311 315 1124 87 232 375 177 58 Hop . | . . . . . . . . . . Pick Up 58 | 9 2 13 6 1 1 6 18 . 2 Fast Attach . | . . . . . . . . . . Attach 33 | 7 . 11 2 1 . 3 3 . 6 Detach . | . . . . . . . . . . Swap 22 | . . . 2 . 1 2 17 . . Drop 21 | . . . 2 1 . 3 15 . . Fire 102 | 6 . 44 . . . 15 21 . 16 Melee . | . . . . . . . . . . Ram 3 | . . . . . . . . . 3 Kick . | . . . . . . . . . . Crush 3 | . . . . . . . . . 3 Escape Stasis . | . . . . . . . . . . Rewire 1 | . . . . 1 . . . . . Trap . | . . . . . . . . . . Miscellaneous . | . . . . . . . . . . Route ------- -11/Junkyard -10/Materials -9/Materials -9/Mines -9/Exiles (discovered 2 exits: [*Min x2]) -8/Mines -8/Materials -8/Storage -7/Factory -7/DSF History --------- Turn | Location | Event 5 | -11/Junkyard | Discovered new exit (range 15) 126 | -11/Junkyard | Entered Materials 260 | -10/Materials | Discovered new exit (range 16) 304 | -10/Materials | Entered another Materials area 304 | -9/Materials | Evolved 2 slots: Utility x2 325 | -9/Materials | Build established: Mutant 623 | -9/Materials | Lost 6 parts (1p1n1u3w) 686 | -9/Materials | Core integrity fell below 50% 731 | -9/Materials | Lost 3 parts (1u2w) 831 | -9/Materials | Discovered new exit (range 16) 858 | -9/Materials | Entered Mines 882 | -9/Mines | Learned Materials terminal intel 955 | -9/Mines | Found a hidden stash of uninstalled traps 968 | -9/Mines | Assembled infested the area 1006 | -9/Mines | Met a Derelict bent on vengeance 1012 | -9/Mines | Build established: Scavenger-Mutant 1100 | -9/Mines | Found a damaged Exp. Sensor Array with a note attached 1106 | -9/Mines | Found Prototype Device 1241 | -9/Mines | Discovered new exit (range 5) 1248 | -9/Mines | Entered Exiles 1277 | -9/Exiles | Discovered new exit (range 15) 1298 | -9/Exiles | Met 8R-AWN 1335 | -9/Exiles | Met EX-HEX 1409 | -9/Exiles | Met EX-DEC 1546 | -9/Exiles | Discovered new exit (range 12) 1635 | -9/Exiles | Met EX-BIN 1810 | -9/Exiles | Visited The Gauntlet 2191 | -9/Exiles | Aligned with FarCom system 2193 | -9/Exiles | Given EX-Vault access code 2291 | -9/Exiles | Opened EX-Vault 2322 | -9/Exiles | Found Prototype Device 2323 | -9/Exiles | Identified Chronowheel 2323 | -9/Exiles | Activated Chronowheel 2323 | -9/Exiles | Spacetime reconverged on an earlier point 2339 | -9/Exiles | Identified Exp. Sensor Array 2360 | -9/Exiles | Warned to stay clear of 0b10 Research branches 2601 | -9/Exiles | Entered Mines 2616 | -8/Mines | Discovered new exit (range 8) 2715 | -8/Mines | Entered Materials 2715 | -8/Materials | Evolved 2 slots: Power x1, Utility x1 2716 | -8/Materials | Loaded intel: 12 terminal locations 2894 | -8/Materials | Build established: Scavenger-Skirmisher 3155 | -8/Materials | Discovered new exit (range 11) 3195 | -8/Materials | Entered Storage 4011 | -8/Storage | Assisted by bots powering up and referring to "LRC-V3" 4290 | -8/Storage | Discovered new exit (range 12) 4313 | -8/Storage | Met a pair of Derelict thieves 4369 | -8/Storage | Entered Factory 4369 | -7/Factory | Accompanied by 1 ally 4369 | -7/Factory | Evolved 2 slots: Propulsion x1, Utility x1 4704 | -7/Factory | Identified exit to DSF 4706 | -7/Factory | Entered DSF 4706 | -7/DSF | Accompanied by 1 ally 4720 | -7/DSF | Additional patrols routed to DSF 4842 | -7/DSF | Core integrity fell below 50% 4845 | -7/DSF | Core integrity fell below 20% 4850 | -7/DSF | Destroyed by X-67 Chaingunner with Minigun Last Messages --------------- 04831_ Imp. Sensor Array destroyed. 04832_ Imp. Medium Treads destroyed. 04833_ Critical hit (Burn: +37). 04833_ Heat Sink destroyed. 04837_ Hvy. Ion Engine destroyed. 04838_ Hvy. Particle Cannon destroyed. 04839_ Pulse Rifle destroyed. 04840_ Slammed into X-67 Chaingunner. 04840_ Destabilizing: System interference. 04840_ Imp. Sensor Array temporarily disabled. 04840_ Imp. Sensor Array destroyed. 04841_ Slammed into X-67 Chaingunner. 04844_ Acquired 4 matter. 04844_ Slammed into G-47 Trooper. 04845_ Acquired 2 matter. 04846_ Critical hit (Burn: +37). 04846_ Slammed into G-47 Trooper. 04846_ Critical hit (Burn: +37). 04848_ Crushed G-47 Trooper. 04848_ G-47 Trooper destroyed. Map ----- +----------------------------------------------------+ | | | | | | | | | | | | | | | | | | | | | | | ???????????????????????????????????????????????? | | ???????????????????????????????????????????????? | | ???????????????????????????????????????????????? | | ??????????????????????????????????????##???????? | | ?????????????????????????????????????#""???????? | | ?????????????????????????????????????#"#???????? | | ????????????????????#########???????##"####????? | | ????????????????###?# #########"""""#????? | | ???????????"##!!# # #!!!#!!##"""""#????? | | ??????????? * ""##"??? | | ??????????? [% """""??? | | ????????????????#!!!### ### # ## ""###??? | | ????????????????????### ### # ### ###????? | | ????????????????????# ########## ##?????? | | ????????????????????# @ #??????#!! #?????? | | ????????????????????# %a #??????#!! #?????? | | ????????????????????###xg ###??????### ##?????? | | ????????????????????#%g% !!#??????#!! !#?????? | | ????????????????????#=gxg !!#??????#!! !#?????? | | ????????????????????#== !!#??????#!! !#?????? | | ????????????????????### ############ ###????? | | ??????????????????????# #?#***" ?# #?#??? | | ??????????????????????a a##***# ## # #??? | | ?????????????????????? !! [= "#???? | | ?????????????????????? !%! ##???? | | ?????????????????????? % ! % #????? | | ?????????????????????#a a##!!!# ## #????? | | ?????????????????????## ###!!!# ?# #????? | | ??????????????????????? #?#?#####??# ^###????? | | ??????????????????????? !?????????? !??????? | | ??????????????????????? !?????????? !??????? | | ??????????????????????? !????????? !#?????? | | ??????????????????????? ??????????## ##?????? | | ????????????????????????????????????? ??????? | | ????????????????????????????????????? ??????? | | ?????????????????????????????????????# #??????? | | ?????????????????????????????????????# #??????? | | ????????????????????????????????????? "??????? | | ????????????????????????????????????? "??????? | +----------------------------------------------------+ Best States ------------- Heat Dissipation 61 Energy Generation 21 Energy Capacity 445 Matter Stores 300 Matter Capacity 300 Sight Range 16 Robot Scan Range 20 Terrain Scan Density 10 Armor Coverage 150 Evasion (%) 55 Targeting Accuracy 6 Recoil Reduction 1 Item Schematics ----------------- None Robot Schematics ------------------ None Fabricated ------------ Nothing Alien Tech Used ----------------- None Achievements -------------- None Challenges ------------ None Game ------ Seed SurveybotBlastDisintegrator Manual? 0 Play Time 00:46:49 Cumulative 106.5 hours Start 2023.12.18 @ 22:48:01 End 2023.12.21 @ 23:09:29 Sessions 5 Manual Loads 0 Difficulty Rogue Special Mode None Game No. 91 Rogue 91 Adventurer 0 Explorer 0 Win Type - Total 0 Types 0/0/0/0/0/0/0/0/0 Lore% 35 Gallery% 38 Achievement% 30 Wizard Run 0 Options --------- ASCII 0 Keyboard 0 Movement Arrows Keybinds 0 Fullscreen 1 Font 18/SmallcapsGlow Map View 76x50 Tactical HUD 1 Map Filters NONE Filters NONE Steam 1 RUN: d9ee9fc5-1f00-4776-9b59-fbc0c46fba94